[Event "*** SCC Grand Prix: Titled Tuesday Blitz"]
[Site "Chess.com"]
[Date "2020.07.14"]
[Round "2"]
[White "Chess_Boxer123"]
[Black "brunoo2003"]
[Result "1-0"]
[WhiteElo "2569"]
[BlackElo "2222"]
[TimeControl "180+1"]
[EndTime "10:18:24 PDT"]
[Termination "Chess_Boxer123 won by resignation"]

1. d4 {[%clk 0:03:00.9]} 1... Nf6 {[%clk 0:02:58.6]} 2. Bf4 {[%clk 0:03:00.9]}
2... g6 {[%clk 0:02:58.9]} 3. Nc3 {[%clk 0:02:57.7]} 3... d5 {[%clk 0:02:58.3]}
4. e3 {[%clk 0:02:57.6]} 4... Bg7 {[%clk 0:02:57.7]} 5. h4 {[%clk 0:02:57.3]}
5... h5 {[%clk 0:02:44.4]} 6. Nb5 {[%clk 0:02:56.4]} 6... Na6 {[%clk 0:02:41.9]}
7. Nf3 {[%clk 0:02:56]} 7... c6 {[%clk 0:02:40]} 8. Nc3 {[%clk 0:02:55.7]} 8...
Bg4 {[%clk 0:02:39.8]} 9. Bxa6 {[%clk 0:02:55]} 9... bxa6 {[%clk 0:02:39.5]} 10.
Na4 {[%clk 0:02:46.8]} 10... Bxf3 {[%clk 0:02:39.1]} 11. gxf3 {[%clk 0:02:46.7]}
11... Nd7 {[%clk 0:02:36.3]} 12. c3 {[%clk 0:02:46.5]} 12... e5 {[%clk
0:02:34.3]} 13. Bg3 {[%clk 0:02:46.7]} 13... exd4 {[%clk 0:02:30.6]} 14. exd4
{[%clk 0:02:44.6]} 14... O-O {[%clk 0:02:29.1]} 15. Kf1 {[%clk 0:02:40]} 15...
Re8 {[%clk 0:02:14.4]} 16. Kg2 {[%clk 0:02:39.2]} 16... Nb6 {[%clk 0:02:14.1]}
17. Nc5 {[%clk 0:02:38.6]} 17... Nd7 {[%clk 0:02:14.1]} 18. Nd3 {[%clk
0:02:32.6]} 18... Qb6 {[%clk 0:02:11.9]} 19. Qd2 {[%clk 0:02:22.5]} 19... c5
{[%clk 0:02:10.1]} 20. dxc5 {[%clk 0:02:20.9]} 20... Nxc5 {[%clk 0:02:11]} 21.
Nb4 {[%clk 0:02:18.9]} 21... Rad8 {[%clk 0:01:20.8]} 22. Nxd5 {[%clk 0:02:15.5]}
22... Qb7 {[%clk 0:01:15.6]} 23. Rad1 {[%clk 0:02:10.8]} 23... Na4 {[%clk
0:01:14.7]} 24. Qg5 {[%clk 0:01:22.3]} 24... Nxb2 {[%clk 0:00:59.2]} 25. Ne7+
{[%clk 0:01:22.1]} 25... Qxe7 {[%clk 0:00:18.5]} 26. Qxe7 {[%clk 0:01:21.2]}
26... Rxe7 {[%clk 0:00:19.4]} 27. Rxd8+ {[%clk 0:01:21.2]} 27... Kh7 {[%clk
0:00:20]} 28. Rc1 {[%clk 0:01:16.5]} 28... Nc4 {[%clk 0:00:19.2]} 29. Rc2 {[%clk
0:01:12.8]} 29... Na3 {[%clk 0:00:16.2]} 30. Rc1 {[%clk 0:01:12.3]} 30... Nc4
{[%clk 0:00:16.2]} 31. Rd4 {[%clk 0:01:08.9]} 31... Bxd4 {[%clk 0:00:15.4]} 32.
cxd4 {[%clk 0:01:09.8]} 32... Nb6 {[%clk 0:00:15.9]} 33. Be5 {[%clk 0:01:09]}
33... Rd7 {[%clk 0:00:16.2]} 34. f4 {[%clk 0:01:08.7]} 34... Nd5 {[%clk
0:00:16.1]} 35. Rc8 {[%clk 0:01:08.1]} 35... f6 {[%clk 0:00:16.1]} 36. Bb8
{[%clk 0:01:07.8]} 36... Nb6 {[%clk 0:00:15.9]} 37. Rc7 {[%clk 0:01:06.3]} 37...
Rxc7 {[%clk 0:00:16.2]} 38. Bxc7 {[%clk 0:01:07.2]} 38... Kg7 {[%clk 0:00:13.8]}
39. f5 {[%clk 0:01:01.3]} 39... gxf5 {[%clk 0:00:12.6]} 40. Kf3 {[%clk
0:01:00.6]} 40... Kf7 {[%clk 0:00:13.1]} 41. Bb8 {[%clk 0:00:58.3]} 41... Nc8
{[%clk 0:00:06.9]} 42. d5 {[%clk 0:00:58.3]} 42... Nb6 {[%clk 0:00:07.2]} 43. d6
{[%clk 0:00:53.7]} 43... Ke6 {[%clk 0:00:07.8]} 44. Bxa7 {[%clk 0:00:53.8]}
44... Nc4 {[%clk 0:00:05.8]} 45. Bc5 {[%clk 0:00:53.7]} 45... Nxd6 {[%clk
0:00:05.9]} 46. Bxd6 {[%clk 0:00:54.2]} 46... Kxd6 {[%clk 0:00:06.8]} 47. Kf4
{[%clk 0:00:54.8]} 47... Ke6 {[%clk 0:00:07.2]} 48. f3 {[%clk 0:00:55.2]} 48...
a5 {[%clk 0:00:06.7]} 49. a4 {[%clk 0:00:55.6]} 49... Ke7 {[%clk 0:00:07.1]} 50.
Kxf5 {[%clk 0:00:56.5]} 50... Kf7 {[%clk 0:00:07.6]} 51. f4 {[%clk 0:00:57.4]}
51... Ke7 {[%clk 0:00:07.9]} 52. Kg6 {[%clk 0:00:57.2]} 52... Ke6 {[%clk
0:00:08.8]} 53. Kxh5 {[%clk 0:00:54.8]} 53... Kf5 {[%clk 0:00:09.1]} 54. Kh6
{[%clk 0:00:55.3]} 54... Kxf4 {[%clk 0:00:09.1]} 55. Kg6 {[%clk 0:00:56.2]}
55... Kg4 {[%clk 0:00:09.1]} 56. h5 {[%clk 0:00:56]} 56... f5 {[%clk 0:00:09.1]}
57. h6 {[%clk 0:00:56.9]} 57... f4 {[%clk 0:00:10]} 58. h7 {[%clk 0:00:57.8]}
58... f3 {[%clk 0:00:10.9]} 59. h8=Q {[%clk 0:00:58.7]} 59... f2 {[%clk
0:00:11.8]} 60. Qa1 {[%clk 0:00:57.9]} 1-0

[Event "*** SCC Grand Prix: Titled Tuesday Blitz"]
[Site "Chess.com"]
[Date "2020.07.14"]
[Round "2"]
[White "elohunter1999"]
[Black "econpower"]
[Result "0-1"]
[WhiteElo "2453"]
[BlackElo "2668"]
[TimeControl "180+1"]
[EndTime "10:18:25 PDT"]
[Termination "econpower won by resignation"]

1. e4 {[%clk 0:03:00.9]} 1... d6 {[%clk 0:03:00]} 2. d4 {[%clk 0:03:00.5]} 2...
Nf6 {[%clk 0:03:00.5]} 3. Nc3 {[%clk 0:03:00.6]} 3... e5 {[%clk 0:03:01]} 4. Nf3
{[%clk 0:03:00.4]} 4... Nbd7 {[%clk 0:03:00.8]} 5. Bc4 {[%clk 0:03:00.7]} 5...
Be7 {[%clk 0:03:01.4]} 6. a4 {[%clk 0:03:00.4]} 6... O-O {[%clk 0:03:01.8]} 7.
O-O {[%clk 0:03:00.5]} 7... c6 {[%clk 0:03:02.4]} 8. h3 {[%clk 0:03:00.2]} 8...
Qc7 {[%clk 0:03:02.2]} 9. Qe2 {[%clk 0:02:57.6]} 9... b6 {[%clk 0:03:01.9]} 10.
Be3 {[%clk 0:02:54.9]} 10... a6 {[%clk 0:02:58.3]} 11. Ba2 {[%clk 0:02:52.8]}
11... Bb7 {[%clk 0:02:56.6]} 12. Nh4 {[%clk 0:02:30.2]} 12... Rfe8 {[%clk
0:02:26.4]} 13. Nf5 {[%clk 0:02:29.7]} 13... Bf8 {[%clk 0:02:26.3]} 14. dxe5
{[%clk 0:02:28.6]} 14... Nxe5 {[%clk 0:02:22]} 15. Bg5 {[%clk 0:02:04.1]} 15...
Ned7 {[%clk 0:01:42.6]} 16. Qf3 {[%clk 0:02:02.4]} 16... d5 {[%clk 0:01:32.2]}
17. Bf4 {[%clk 0:01:36]} 17... Ne5 {[%clk 0:00:57.9]} 18. Qg3 {[%clk 0:01:28.6]}
18... Kh8 {[%clk 0:00:58.5]} 19. exd5 {[%clk 0:01:22.7]} 19... Nh5 {[%clk
0:00:57.9]} 20. Bxe5 {[%clk 0:01:18.2]} 20... Rxe5 {[%clk 0:00:54.9]} 21. Qf3
{[%clk 0:01:18]} 21... Nf6 {[%clk 0:00:54]} 22. Rae1 {[%clk 0:00:54.8]} 22...
cxd5 {[%clk 0:00:50.8]} 23. Qg3 {[%clk 0:00:50.4]} 23... Rae8 {[%clk 0:00:50.4]}
24. Rxe5 {[%clk 0:00:40.7]} 24... Qxe5 {[%clk 0:00:49.9]} 25. Qxe5 {[%clk
0:00:36.5]} 25... Rxe5 {[%clk 0:00:50.8]} 26. Nd4 {[%clk 0:00:36.7]} 26... Bc5
{[%clk 0:00:51.1]} 27. Nce2 {[%clk 0:00:36.2]} 27... Ne4 {[%clk 0:00:49.4]} 28.
Rd1 {[%clk 0:00:33.2]} 28... g6 {[%clk 0:00:48]} 29. c3 {[%clk 0:00:32.8]} 29...
a5 {[%clk 0:00:47.8]} 30. Nf4 {[%clk 0:00:29.1]} 30... Kg7 {[%clk 0:00:47.5]}
31. Nd3 {[%clk 0:00:28.6]} 31... Re7 {[%clk 0:00:48.1]} 32. Nxc5 {[%clk
0:00:27.9]} 32... bxc5 {[%clk 0:00:47.3]} 33. Nf3 {[%clk 0:00:24.1]} 33... Nf6
{[%clk 0:00:46.9]} 34. Re1 {[%clk 0:00:22.5]} 34... Rxe1+ {[%clk 0:00:44.9]} 35.
Nxe1 {[%clk 0:00:23.4]} 35... Bc6 {[%clk 0:00:44.4]} 36. Nd3 {[%clk 0:00:22.6]}
36... c4 {[%clk 0:00:41.7]} 37. Nc5 {[%clk 0:00:19.6]} 37... Kf8 {[%clk
0:00:42.1]} 38. b4 {[%clk 0:00:18.5]} 38... cxb3 {[%clk 0:00:35.3]} 39. Nxb3
{[%clk 0:00:18.3]} 39... Bxa4 {[%clk 0:00:35]} 40. Nxa5 {[%clk 0:00:18.6]} 40...
Ke7 {[%clk 0:00:34.7]} 41. Nb3 {[%clk 0:00:17.1]} 41... Bxb3 {[%clk 0:00:32]}
42. Bxb3 {[%clk 0:00:18]} 42... Kd6 {[%clk 0:00:32.9]} 43. Kf1 {[%clk
0:00:18.2]} 43... Ne4 {[%clk 0:00:33.3]} 44. c4 {[%clk 0:00:16.6]} 44... Nd2+
{[%clk 0:00:33.2]} 45. Ke2 {[%clk 0:00:15.4]} 45... Nxb3 {[%clk 0:00:34.1]} 46.
cxd5 {[%clk 0:00:14.2]} 46... Kxd5 {[%clk 0:00:34]} 47. Kf3 {[%clk 0:00:14.2]}
47... Ke5 {[%clk 0:00:34]} 48. h4 {[%clk 0:00:14.5]} 48... Nd4+ {[%clk
0:00:31.4]} 49. Kg4 {[%clk 0:00:14.9]} 49... h5+ {[%clk 0:00:30.2]} 50. Kg5
{[%clk 0:00:14.8]} 50... Ne6+ {[%clk 0:00:30.7]} 51. Kh6 {[%clk 0:00:14.8]}
51... Kf6 {[%clk 0:00:30.7]} 52. g3 {[%clk 0:00:13.2]} 52... Ng7 {[%clk
0:00:29.1]} 53. Kh7 {[%clk 0:00:11.7]} 53... Nf5 {[%clk 0:00:29.6]} 54. Kg8
{[%clk 0:00:08.9]} 54... Nh6+ {[%clk 0:00:30]} 55. Kh7 {[%clk 0:00:08.5]} 55...
Ng4 {[%clk 0:00:30.9]} 56. f3 {[%clk 0:00:08.6]} 56... Nh2 {[%clk 0:00:31.3]}
57. g4 {[%clk 0:00:07.7]} 57... hxg4 {[%clk 0:00:30.3]} 58. fxg4 {[%clk
0:00:08.6]} 58... Nxg4 {[%clk 0:00:30.6]} 59. Kg8 {[%clk 0:00:08.7]} 59... Nh6+
{[%clk 0:00:29.4]} 60. Kh7 {[%clk 0:00:08.9]} 60... Nf5 {[%clk 0:00:30.3]} 0-1

[Event "*** SCC Grand Prix: Titled Tuesday Blitz"]
[Site "Chess.com"]
[Date "2020.07.14"]
[Round "2"]
[White "biaf13"]
[Black "Fischerev7"]
[Result "0-1"]
[WhiteElo "1956"]
[BlackElo "2347"]
[TimeControl "180+1"]
[EndTime "10:18:25 PDT"]
[Termination "Fischerev7 won on time"]

1. e4 {[%clk 0:03:00.9]} 1... c5 {[%clk 0:02:59.1]} 2. Nf3 {[%clk 0:03:00.6]}
2... d6 {[%clk 0:02:59.2]} 3. d4 {[%clk 0:02:59.4]} 3... cxd4 {[%clk 0:03:00.1]}
4. Nxd4 {[%clk 0:03:00.3]} 4... Nf6 {[%clk 0:03:00.4]} 5. Nc3 {[%clk 0:02:58.1]}
5... a6 {[%clk 0:03:00.6]} 6. Be3 {[%clk 0:02:57.9]} 6... e5 {[%clk 0:02:59.7]}
7. Nb3 {[%clk 0:02:58.4]} 7... Be6 {[%clk 0:02:59.8]} 8. f3 {[%clk 0:02:58.4]}
8... Be7 {[%clk 0:03:00.3]} 9. Qd2 {[%clk 0:02:58.8]} 9... O-O {[%clk
0:03:00.2]} 10. O-O-O {[%clk 0:02:59.3]} 10... Nbd7 {[%clk 0:03:00.5]} 11. g4
{[%clk 0:02:59.2]} 11... b5 {[%clk 0:03:01]} 12. g5 {[%clk 0:02:56]} 12... b4
{[%clk 0:03:01.2]} 13. Nd5 {[%clk 0:02:46.6]} 13... Nxd5 {[%clk 0:02:54.3]} 14.
exd5 {[%clk 0:02:45.3]} 14... Bf5 {[%clk 0:02:54.7]} 15. h4 {[%clk 0:02:38.2]}
15... a5 {[%clk 0:02:52.4]} 16. Kb1 {[%clk 0:02:27.2]} 16... a4 {[%clk
0:02:48.5]} 17. Nc1 {[%clk 0:02:25.5]} 17... Qa5 {[%clk 0:02:48.4]} 18. Bd3
{[%clk 0:02:23.4]} 18... Bxd3 {[%clk 0:02:45.5]} 19. Nxd3 {[%clk 0:02:20.8]}
19... b3 {[%clk 0:01:52.9]} 20. Qxa5 {[%clk 0:02:15.5]} 20... bxc2+ {[%clk
0:01:47.8]} 21. Kxc2 {[%clk 0:02:14.2]} 21... Rxa5 {[%clk 0:01:48.3]} 22. Nb4
{[%clk 0:02:09.5]} 22... Rc8+ {[%clk 0:01:45.8]} 23. Kb1 {[%clk 0:02:09.1]}
23... Rb5 {[%clk 0:01:40.6]} 24. Nc6 {[%clk 0:02:06.3]} 24... Bf8 {[%clk
0:01:37.7]} 25. Na7 {[%clk 0:02:01.2]} 25... Rcb8 {[%clk 0:01:32.8]} 26. Nxb5
{[%clk 0:02:00.8]} 26... Rxb5 {[%clk 0:01:33.7]} 27. Rd3 {[%clk 0:01:56.5]}
27... g6 {[%clk 0:01:27.3]} 28. Rc1 {[%clk 0:01:54]} 28... Bg7 {[%clk
0:01:06.8]} 29. Rc8+ {[%clk 0:01:52.1]} 29... Nf8 {[%clk 0:01:06.5]} 30. Ra3
{[%clk 0:01:36.8]} 30... Rb4 {[%clk 0:01:00.3]} 31. Bf2 {[%clk 0:01:23]} 31...
h6 {[%clk 0:00:55]} 32. Rd3 {[%clk 0:01:04.1]} 32... e4 {[%clk 0:00:48.3]} 33.
Rd2 {[%clk 0:01:02.1]} 33... exf3 {[%clk 0:00:47.2]} 34. a3 {[%clk 0:00:35.6]}
34... Rg4 {[%clk 0:00:36.4]} 35. Ra8 {[%clk 0:00:30.9]} 35... hxg5 {[%clk
0:00:33]} 36. hxg5 {[%clk 0:00:30.7]} 36... Be5 {[%clk 0:00:31]} 37. Rc2 {[%clk
0:00:24]} 37... Kg7 {[%clk 0:00:28.7]} 38. Be3 {[%clk 0:00:14.3]} 38... Re4
{[%clk 0:00:22.9]} 39. Bf2 {[%clk 0:00:09.7]} 39... Nh7 {[%clk 0:00:20.7]} 40.
Rcc8 {[%clk 0:00:08.6]} 40... Nxg5 {[%clk 0:00:18.1]} 41. Rc2 {[%clk 0:00:05.8]}
41... Nh3 {[%clk 0:00:17.2]} 42. Bb6 {[%clk 0:00:05.7]} 42... Rf4 {[%clk
0:00:12.6]} 43. Rc1 {[%clk 0:00:02.2]} 43... f2 {[%clk 0:00:11.3]} 44. Rf1
{[%clk 0:00:02.6]} 44... Rf3 {[%clk 0:00:11.3]} 0-1

[Event "*** SCC Grand Prix: Titled Tuesday Blitz"]
[Site "Chess.com"]
[Date "2020.07.14"]
[Round "2"]
[White "Terao90"]
[Black "Rytenko_V"]
[Result "0-1"]
[WhiteElo "2268"]
[BlackElo "2470"]
[TimeControl "180+1"]
[EndTime "10:18:26 PDT"]
[Termination "Rytenko_V won on time"]

1. c4 {[%clk 0:03:00.9]} 1... Nf6 {[%clk 0:02:59.6]} 2. Nc3 {[%clk 0:02:59.4]}
2... e5 {[%clk 0:03:00]} 3. g3 {[%clk 0:02:57.8]} 3... Bb4 {[%clk 0:02:59.6]} 4.
Bg2 {[%clk 0:02:54.5]} 4... O-O {[%clk 0:03:00]} 5. Nf3 {[%clk 0:02:53.1]} 5...
Nc6 {[%clk 0:02:57.8]} 6. O-O {[%clk 0:02:47.2]} 6... Re8 {[%clk 0:02:57.2]} 7.
Nd5 {[%clk 0:02:44.5]} 7... Bc5 {[%clk 0:02:56.7]} 8. d3 {[%clk 0:02:41.4]} 8...
h6 {[%clk 0:02:55.2]} 9. Nxf6+ {[%clk 0:01:38.2]} 9... Qxf6 {[%clk 0:02:50.5]}
10. Nd2 {[%clk 0:01:32.2]} 10... a5 {[%clk 0:02:32.1]} 11. Ne4 {[%clk
0:01:31.4]} 11... Qe7 {[%clk 0:02:32.4]} 12. Nxc5 {[%clk 0:01:31.4]} 12... Qxc5
{[%clk 0:02:33.3]} 13. Be3 {[%clk 0:01:31.7]} 13... Nd4 {[%clk 0:02:29.1]} 14.
b3 {[%clk 0:01:20.9]} 14... d6 {[%clk 0:02:28.9]} 15. Qd2 {[%clk 0:01:16.1]}
15... Bg4 {[%clk 0:02:19.6]} 16. Rfe1 {[%clk 0:01:10.3]} 16... c6 {[%clk
0:02:13.6]} 17. h3 {[%clk 0:01:09.6]} 17... Bh5 {[%clk 0:02:08.6]} 18. Rab1
{[%clk 0:01:01.9]} 18... Qb4 {[%clk 0:02:05.3]} 19. Qb2 {[%clk 0:00:57]} 19...
c5 {[%clk 0:01:52.7]} 20. a3 {[%clk 0:00:55.8]} 20... Qb6 {[%clk 0:01:51.9]} 21.
g4 {[%clk 0:00:56]} 21... Bg6 {[%clk 0:01:51.3]} 22. b4 {[%clk 0:00:54.8]} 22...
axb4 {[%clk 0:01:46.2]} 23. axb4 {[%clk 0:00:55.7]} 23... Qxb4 {[%clk
0:01:35.5]} 24. Qxb4 {[%clk 0:00:54]} 24... cxb4 {[%clk 0:01:36.4]} 25. Bxd4
{[%clk 0:00:54.2]} 25... exd4 {[%clk 0:01:35.9]} 26. Bxb7 {[%clk 0:00:45.9]}
26... Ra2 {[%clk 0:01:28.1]} 27. Bf3 {[%clk 0:00:25.5]} 27... Rb8 {[%clk
0:01:19.9]} 28. Rb3 {[%clk 0:00:24.2]} 28... Ra3 {[%clk 0:01:15]} 29. Reb1
{[%clk 0:00:24.1]} 29... Rxb3 {[%clk 0:01:15.1]} 30. Rxb3 {[%clk 0:00:25]} 30...
Kf8 {[%clk 0:01:13.3]} 31. Kf1 {[%clk 0:00:21.8]} 31... Ke7 {[%clk 0:01:13.6]}
32. Ke1 {[%clk 0:00:22.1]} 32... f5 {[%clk 0:01:11.4]} 33. Kd2 {[%clk
0:00:20.5]} 33... f4 {[%clk 0:01:11.1]} 34. e3 {[%clk 0:00:20.3]} 34... fxe3+
{[%clk 0:01:07.8]} 35. fxe3 {[%clk 0:00:21.2]} 35... dxe3+ {[%clk 0:01:04.9]}
36. Kxe3 {[%clk 0:00:22.1]} 36... Kf6 {[%clk 0:01:05.6]} 37. d4 {[%clk
0:00:20.9]} 37... Bf7 {[%clk 0:01:05]} 38. Be2 {[%clk 0:00:19.6]} 38... Bg6
{[%clk 0:01:04.1]} 39. Bd3 {[%clk 0:00:14.6]} 39... Bf7 {[%clk 0:01:04.3]} 40.
Rb1 {[%clk 0:00:07.2]} 40... Kg5 {[%clk 0:00:59.2]} 41. Rf1 {[%clk 0:00:03.3]}
41... Be6 {[%clk 0:00:58.3]} 42. d5 {[%clk 0:00:03.7]} 42... Bd7 {[%clk
0:00:52.7]} 43. Rf7 {[%clk 0:00:02.9]} 43... Be8 {[%clk 0:00:48.9]} 44. Rxg7+
{[%clk 0:00:03.3]} 44... Kf6 {[%clk 0:00:45.5]} 45. Rg8 {[%clk 0:00:03.5]} 45...
b3 {[%clk 0:00:46.4]} 46. Kd4 {[%clk 0:00:03.7]} 46... b2 {[%clk 0:00:45.9]} 47.
c5 {[%clk 0:00:04.1]} 47... Rb3 {[%clk 0:00:34]} 48. Bb1 {[%clk 0:00:03.2]}
48... Bf7 {[%clk 0:00:28.4]} 49. Rd8 {[%clk 0:00:02]} 49... Rb4+ {[%clk
0:00:27.8]} 50. Kc3 {[%clk 0:00:01.8]} 50... dxc5 {[%clk 0:00:28.7]} 51. d6
{[%clk 0:00:01.5]} 51... Rb3+ {[%clk 0:00:26]} 52. Kc2 {[%clk 0:00:01.2]} 52...
Rxh3 {[%clk 0:00:26.4]} 0-1

[Event "*** SCC Grand Prix: Titled Tuesday Blitz"]
[Site "Chess.com"]
[Date "2020.07.14"]
[Round "2"]
[White "bratkoo"]
[Black "MihailNik"]
[Result "1/2-1/2"]
[WhiteElo "2467"]
[BlackElo "2679"]
[TimeControl "180+1"]
[EndTime "10:18:27 PDT"]
[Termination "Game drawn by agreement"]

1. Nf3 {[%clk 0:03:00.9]} 1... Nf6 {[%clk 0:02:59.8]} 2. d4 {[%clk 0:03:00.5]}
2... d5 {[%clk 0:02:59.7]} 3. g3 {[%clk 0:03:00.9]} 3... Bf5 {[%clk 0:02:59.2]}
4. Bg2 {[%clk 0:03:01.2]} 4... e6 {[%clk 0:02:59.7]} 5. O-O {[%clk 0:03:01.5]}
5... h6 {[%clk 0:02:59.3]} 6. Nbd2 {[%clk 0:03:01.2]} 6... c6 {[%clk 0:02:58.7]}
7. Ne5 {[%clk 0:03:01]} 7... Be7 {[%clk 0:02:58.1]} 8. c3 {[%clk 0:02:59.3]}
8... O-O {[%clk 0:02:57.5]} 9. h3 {[%clk 0:02:58.1]} 9... Nbd7 {[%clk
0:02:57.3]} 10. Ndf3 {[%clk 0:02:57.8]} 10... c5 {[%clk 0:02:54.4]} 11. g4
{[%clk 0:02:58.1]} 11... Be4 {[%clk 0:02:54.1]} 12. Bf4 {[%clk 0:02:57.7]} 12...
cxd4 {[%clk 0:02:44.2]} 13. cxd4 {[%clk 0:02:53.4]} 13... Qb6 {[%clk 0:02:43.8]}
14. b3 {[%clk 0:02:48.2]} 14... Rac8 {[%clk 0:02:39.5]} 15. Nxd7 {[%clk
0:02:42.1]} 15... Nxd7 {[%clk 0:02:38.9]} 16. Ne5 {[%clk 0:02:42.5]} 16... Nxe5
{[%clk 0:02:35.8]} 17. Bxe4 {[%clk 0:02:39.5]} 17... Nc6 {[%clk 0:02:30.8]} 18.
Bd3 {[%clk 0:02:30.8]} 18... Qxd4 {[%clk 0:02:21.3]} 19. e3 {[%clk 0:02:31.2]}
19... Qb4 {[%clk 0:02:18.5]} 20. Bg3 {[%clk 0:02:23.1]} 20... Bf6 {[%clk
0:02:14.3]} 21. Rc1 {[%clk 0:02:22.1]} 21... Ne5 {[%clk 0:02:13.9]} 22. Bb1
{[%clk 0:02:20.6]} 22... Qa3 {[%clk 0:02:05.9]} 23. Rxc8 {[%clk 0:02:16.8]}
23... Rxc8 {[%clk 0:02:05.2]} 24. f4 {[%clk 0:02:17]} 24... Nd7 {[%clk
0:02:00.1]} 25. g5 {[%clk 0:02:06.8]} 25... Be7 {[%clk 0:01:35.1]} 26. gxh6
{[%clk 0:02:05.7]} 26... g6 {[%clk 0:01:35.4]} 27. f5 {[%clk 0:01:45.5]} 27...
exf5 {[%clk 0:01:36.3]} 28. Qxd5 {[%clk 0:01:44.2]} 28... Nf6 {[%clk 0:01:33.1]}
29. Qxb7 {[%clk 0:01:36.7]} 29... Rc1 {[%clk 0:01:30.3]} 30. Bd3 {[%clk
0:01:28.7]} 30... Rxf1+ {[%clk 0:01:25.1]} 31. Bxf1 {[%clk 0:01:28.5]} 31... Qc5
{[%clk 0:01:25.6]} 32. Bf2 {[%clk 0:01:23.2]} 32... Ne4 {[%clk 0:01:25.3]} 33.
Bc4 {[%clk 0:01:20.1]} 33... Nxf2 {[%clk 0:01:19.6]} 34. Kxf2 {[%clk 0:01:19.6]}
34... f4 {[%clk 0:01:19.9]} 35. Qf3 {[%clk 0:01:18.6]} 35... Bg5 {[%clk
0:01:11.6]} 36. h7+ {[%clk 0:01:11.7]} 36... Kxh7 {[%clk 0:01:11.1]} 37. Ke2
{[%clk 0:01:11.9]} 37... Qe7 {[%clk 0:01:01.6]} 38. e4 {[%clk 0:01:08.5]} 38...
Kg7 {[%clk 0:00:56.2]} 39. Bd5 {[%clk 0:01:04.6]} 39... Qc7 {[%clk 0:00:53]} 40.
Qd3 {[%clk 0:00:59.3]} 40... Bf6 {[%clk 0:00:50.8]} 41. Qc4 {[%clk 0:00:57]}
41... Qe7 {[%clk 0:00:48.2]} 42. Kf3 {[%clk 0:00:56.3]} 42... Be5 {[%clk
0:00:47.5]} 43. Qc8 {[%clk 0:00:55.8]} 43... Qh4 {[%clk 0:00:45.3]} 44. Qg4
{[%clk 0:00:46.1]} 44... Qe1 {[%clk 0:00:44.9]} 45. Qg2 {[%clk 0:00:36.1]} 45...
Qe3+ {[%clk 0:00:42.3]} 46. Kg4 {[%clk 0:00:36.5]} 46... Qd3 {[%clk 0:00:23.5]}
47. h4 {[%clk 0:00:32.9]} 47... f5+ {[%clk 0:00:20.6]} 48. exf5 {[%clk
0:00:30.5]} 48... Qxf5+ {[%clk 0:00:21.5]} 49. Kf3 {[%clk 0:00:30.5]} 49... Qd3+
{[%clk 0:00:20.9]} 50. Kg4 {[%clk 0:00:30.9]} 50... Kh6 {[%clk 0:00:21.1]} 51.
Be4 {[%clk 0:00:29.8]} 51... Qd1+ {[%clk 0:00:21.2]} 52. Kh3 {[%clk 0:00:27.3]}
52... Qd7+ {[%clk 0:00:17.9]} 53. Qg4 {[%clk 0:00:25.5]} 53... Qxg4+ {[%clk
0:00:16.5]} 54. Kxg4 {[%clk 0:00:26.3]} 54... Kg7 {[%clk 0:00:17.2]} 55. b4
{[%clk 0:00:26.4]} 55... Kf6 {[%clk 0:00:17.3]} 56. b5 {[%clk 0:00:26.4]} 56...
Bc7 {[%clk 0:00:17]} 57. a4 {[%clk 0:00:26.6]} 57... Bd6 {[%clk 0:00:15.6]}
1/2-1/2

[Event "*** SCC Grand Prix: Titled Tuesday Blitz"]
[Site "Chess.com"]
[Date "2020.07.14"]
[Round "2"]
[White "Chernobay_Artem"]
[Black "GMJustin"]
[Result "1-0"]
[WhiteElo "2618"]
[BlackElo "2298"]
[TimeControl "180+1"]
[EndTime "10:18:27 PDT"]
[Termination "Chernobay_Artem won on time"]

1. d4 {[%clk 0:03:00.9]} 1... d5 {[%clk 0:02:46.6]} 2. c4 {[%clk 0:03:00.4]}
2... dxc4 {[%clk 0:02:45.6]} 3. Nf3 {[%clk 0:02:58.2]} 3... a6 {[%clk
0:02:44.8]} 4. g3 {[%clk 0:02:56.5]} 4... b5 {[%clk 0:02:40.1]} 5. Bg2 {[%clk
0:02:56.4]} 5... Bb7 {[%clk 0:02:39.7]} 6. O-O {[%clk 0:02:56.2]} 6... Nd7
{[%clk 0:02:32.7]} 7. b3 {[%clk 0:02:55.1]} 7... cxb3 {[%clk 0:02:29.6]} 8. Qxb3
{[%clk 0:02:54.8]} 8... e6 {[%clk 0:02:20.4]} 9. a4 {[%clk 0:02:44.8]} 9... c5
{[%clk 0:02:09.7]} 10. axb5 {[%clk 0:02:39.4]} 10... axb5 {[%clk 0:02:05.9]} 11.
Rxa8 {[%clk 0:02:37.6]} 11... Qxa8 {[%clk 0:02:05.6]} 12. dxc5 {[%clk
0:02:32.3]} 12... Bxc5 {[%clk 0:01:54.5]} 13. Nc3 {[%clk 0:02:16.3]} 13... Ngf6
{[%clk 0:01:49.1]} 14. Nxb5 {[%clk 0:02:11.8]} 14... O-O {[%clk 0:01:47.1]} 15.
Bf4 {[%clk 0:02:03.1]} 15... Bd5 {[%clk 0:01:30.1]} 16. Qb2 {[%clk 0:01:55.5]}
16... Qb7 {[%clk 0:01:25.8]} 17. Rb1 {[%clk 0:01:47.9]} 17... Ng4 {[%clk
0:00:58.6]} 18. Nc3 {[%clk 0:00:57.6]} 18... Bxf2+ {[%clk 0:00:44.5]} 19. Kf1
{[%clk 0:00:57.2]} 19... Qxb2 {[%clk 0:00:23.9]} 20. Rxb2 {[%clk 0:00:58.1]}
20... Be3 {[%clk 0:00:13.5]} 21. Nxd5 {[%clk 0:00:49]} 21... exd5 {[%clk
0:00:13.4]} 22. Bh3 {[%clk 0:00:44.5]} 22... Bxf4 {[%clk 0:00:07.7]} 23. gxf4
{[%clk 0:00:41.1]} 23... Ndf6 {[%clk 0:00:07.1]} 24. Kg2 {[%clk 0:00:28.3]}
24... h5 {[%clk 0:00:06.8]} 25. Nd4 {[%clk 0:00:28.1]} 25... Re8 {[%clk
0:00:06.5]} 26. Rb7 {[%clk 0:00:22.1]} 26... g6 {[%clk 0:00:06.2]} 27. Bxg4
{[%clk 0:00:18]} 27... hxg4 {[%clk 0:00:05.7]} 28. Kf2 {[%clk 0:00:14.6]} 28...
Ne4+ {[%clk 0:00:04.8]} 29. Ke1 {[%clk 0:00:14.3]} 29... g3 {[%clk 0:00:03.9]}
30. hxg3 {[%clk 0:00:13.3]} 30... Nxg3 {[%clk 0:00:04.1]} 31. Kf2 {[%clk
0:00:12.8]} 31... Ne4+ {[%clk 0:00:03]} 32. Kf3 {[%clk 0:00:13.2]} 32... Nc3
{[%clk 0:00:02.9]} 33. Rc7 {[%clk 0:00:10.8]} 33... Ne4 {[%clk 0:00:02.8]} 34.
Nc6 {[%clk 0:00:10.1]} 34... Nf6 {[%clk 0:00:02.5]} 35. Ne5 {[%clk 0:00:07.9]}
35... Rf8 {[%clk 0:00:01.6]} 36. Ke3 {[%clk 0:00:06.1]} 36... Kg7 {[%clk
0:00:01.7]} 37. Kd4 {[%clk 0:00:05.6]} 37... Ne4 {[%clk 0:00:01.4]} 38. Kxd5
{[%clk 0:00:04.7]} 38... Nf6+ {[%clk 0:00:01.6]} 39. Kd4 {[%clk 0:00:04.9]}
39... Ne8 {[%clk 0:00:01.6]} 40. Ra7 {[%clk 0:00:03.3]} 40... Nd6 {[%clk
0:00:01.7]} 41. Kd5 {[%clk 0:00:01.5]} 41... Nf5 {[%clk 0:00:01.8]} 42. Nd7
{[%clk 0:00:01]} 42... Rd8 {[%clk 0:00:01.2]} 43. e4 {[%clk 0:00:01.3]} 1-0